[Event "*** Titled Tuesday Blitz"]
[Site "Chess.com"]
[Date "2020.05.19"]
[Round "1"]
[White "dretch"]
[Black "mamey78"]
[Result "1-0"]
[WhiteElo "2705"]
[BlackElo "2369"]
[TimeControl "180+1"]
[EndTime "12:04:50 PDT"]
[Termination "dretch won by resignation"]

1. d4 {[%clk 0:02:51.2]} 1... d5 {[%clk 0:02:58.1]} 2. c4 {[%clk 0:02:48.8]}
2... c6 {[%clk 0:02:57.7]} 3. Nc3 {[%clk 0:02:47.5]} 3... Nf6 {[%clk 0:02:57.8]}
4. e3 {[%clk 0:02:45.9]} 4... e6 {[%clk 0:02:57.5]} 5. Bd3 {[%clk 0:02:46.1]}
5... Nbd7 {[%clk 0:02:55.2]} 6. e4 {[%clk 0:02:44.5]} 6... dxe4 {[%clk
0:02:49.8]} 7. Nxe4 {[%clk 0:02:45.4]} 7... Bb4+ {[%clk 0:02:48.9]} 8. Bd2
{[%clk 0:02:44.2]} 8... Bxd2+ {[%clk 0:02:47.9]} 9. Qxd2 {[%clk 0:02:45.1]} 9...
Nxe4 {[%clk 0:02:44.1]} 10. Bxe4 {[%clk 0:02:44.1]} 10... Nf6 {[%clk 0:02:44.4]}
11. Bc2 {[%clk 0:02:43.4]} 11... b6 {[%clk 0:02:30.5]} 12. Nf3 {[%clk
0:02:41.6]} 12... O-O {[%clk 0:02:20.3]} 13. O-O-O {[%clk 0:02:38.5]} 13... Bb7
{[%clk 0:02:16.8]} 14. Qf4 {[%clk 0:02:36.6]} 14... Qe7 {[%clk 0:01:59.9]} 15.
Qh4 {[%clk 0:02:31.1]} 15... c5 {[%clk 0:01:47.2]} 16. d5 {[%clk 0:02:11.5]}
16... exd5 {[%clk 0:01:41.1]} 17. Bxh7+ {[%clk 0:02:09.3]} 17... Kh8 {[%clk
0:01:38.4]} 18. Rhe1 {[%clk 0:02:01.8]} 18... Qd6 {[%clk 0:01:37.8]} 19. Ng5
{[%clk 0:01:50.3]} 19... g6 {[%clk 0:01:17.9]} 20. Bxg6+ {[%clk 0:01:45.1]}
20... Kg7 {[%clk 0:01:17.8]} 21. Bxf7 {[%clk 0:01:18.4]} 21... Rxf7 {[%clk
0:01:12.2]} 22. Qh6+ {[%clk 0:01:17.7]} 22... Kg8 {[%clk 0:01:04.1]} 23. Qh8+
{[%clk 0:01:18.6]} 23... Kxh8 {[%clk 0:01:02.4]} 24. Nxf7+ {[%clk 0:01:18.6]}
24... Kg7 {[%clk 0:01:02.4]} 25. Nxd6 {[%clk 0:01:19.5]} 1-0

[Event "*** Titled Tuesday Blitz"]
[Site "Chess.com"]
[Date "2020.05.19"]
[Round "1"]
[White "YQPerez"]
[Black "zubridis"]
[Result "1-0"]
[WhiteElo "2951"]
[BlackElo "2457"]
[TimeControl "180+1"]
[EndTime "12:04:51 PDT"]
[Termination "YQPerez won by resignation"]

1. e4 {[%clk 0:03:00.5]} 1... c5 {[%clk 0:02:57.4]} 2. c3 {[%clk 0:03:00.5]}
2... d5 {[%clk 0:02:52.1]} 3. exd5 {[%clk 0:03:01.4]} 3... Qxd5 {[%clk 0:02:52]}
4. d4 {[%clk 0:03:00.9]} 4... Bf5 {[%clk 0:02:50.1]} 5. Nf3 {[%clk 0:02:54.4]}
5... Nc6 {[%clk 0:02:48.1]} 6. Be2 {[%clk 0:02:36.1]} 6... O-O-O {[%clk
0:02:43.6]} 7. O-O {[%clk 0:02:33.4]} 7... cxd4 {[%clk 0:02:16.9]} 8. cxd4
{[%clk 0:02:31.8]} 8... Bxb1 {[%clk 0:01:35.5]} 9. Rxb1 {[%clk 0:02:28]} 9...
Nf6 {[%clk 0:01:34.9]} 10. Bf4 {[%clk 0:02:14.7]} 10... e6 {[%clk 0:01:34]} 11.
Rc1 {[%clk 0:01:53.8]} 11... Bd6 {[%clk 0:01:19.2]} 12. Bxd6 {[%clk 0:01:48.1]}
12... Rxd6 {[%clk 0:01:00]} 13. Ne5 {[%clk 0:01:41.1]} 13... Qxd4 {[%clk
0:00:30.8]} 14. Nxf7 {[%clk 0:01:40.2]} 1-0

[Event "*** Titled Tuesday Blitz"]
[Site "Chess.com"]
[Date "2020.05.19"]
[Round "1"]
[White "Gordima"]
[Black "AsaHoffmann"]
[Result "1-0"]
[WhiteElo "2763"]
[BlackElo "2405"]
[TimeControl "180+1"]
[EndTime "12:04:51 PDT"]
[Termination "Gordima won by resignation"]

1. d4 {[%clk 0:02:58.7]} 1... Nf6 {[%clk 0:02:58.5]} 2. c4 {[%clk 0:02:58.6]}
2... c5 {[%clk 0:02:57.1]} 3. d5 {[%clk 0:02:58.7]} 3... e5 {[%clk 0:02:55.9]}
4. Nc3 {[%clk 0:02:58.5]} 4... d6 {[%clk 0:02:55.7]} 5. e4 {[%clk 0:02:59.1]}
5... Be7 {[%clk 0:02:54.9]} 6. g3 {[%clk 0:02:59.7]} 6... O-O {[%clk 0:02:53.8]}
7. Bg2 {[%clk 0:03:00.3]} 7... Na6 {[%clk 0:02:53.5]} 8. Nge2 {[%clk 0:03:00.7]}
8... Ne8 {[%clk 0:02:53]} 9. O-O {[%clk 0:02:59.5]} 9... Bd7 {[%clk 0:02:52.8]}
10. f4 {[%clk 0:02:59]} 10... Bf6 {[%clk 0:02:52.7]} 11. Be3 {[%clk 0:02:57.1]}
11... Nec7 {[%clk 0:02:51.9]} 12. a4 {[%clk 0:02:56.3]} 12... Nb4 {[%clk
0:02:51.6]} 13. Qd2 {[%clk 0:02:55.7]} 13... b6 {[%clk 0:02:51.1]} 14. f5 {[%clk
0:02:50]} 14... a6 {[%clk 0:02:49.8]} 15. Kh1 {[%clk 0:02:47.2]} 15... Qe7
{[%clk 0:02:44.9]} 16. Ng1 {[%clk 0:02:45.9]} 16... h6 {[%clk 0:02:43.2]} 17.
Nf3 {[%clk 0:02:46]} 17... b5 {[%clk 0:02:40.8]} 18. b3 {[%clk 0:02:45.4]} 18...
bxc4 {[%clk 0:02:38.4]} 19. bxc4 {[%clk 0:02:46.3]} 19... Rab8 {[%clk
0:02:27.6]} 20. a5 {[%clk 0:02:44.1]} 20... Kh7 {[%clk 0:02:18.5]} 21. h4 {[%clk
0:02:43.3]} 21... Rh8 {[%clk 0:02:16.1]} 22. Nh2 {[%clk 0:02:40.9]} 22... Kg8
{[%clk 0:02:13.3]} 23. Ng4 {[%clk 0:02:39.1]} 23... Kf8 {[%clk 0:02:04.1]} 24.
Bf3 {[%clk 0:02:34.7]} 24... Ke8 {[%clk 0:02:02.9]} 25. Rg1 {[%clk 0:02:31.3]}
25... Kd8 {[%clk 0:02:01.8]} 26. Be2 {[%clk 0:02:24.5]} 26... Ne8 {[%clk
0:01:57.7]} 27. Kg2 {[%clk 0:02:07.8]} 27... Kc7 {[%clk 0:01:53]} 28. Nf2 {[%clk
0:01:51.9]} 28... h5 {[%clk 0:01:40]} 29. Rgb1 {[%clk 0:01:49.7]} 29... g6
{[%clk 0:01:39.1]} 30. fxg6 {[%clk 0:01:43.1]} 30... fxg6 {[%clk 0:01:38.9]} 31.
Nd3 {[%clk 0:01:42.1]} 31... Ng7 {[%clk 0:01:33.1]} 32. Nxb4 {[%clk 0:01:37.5]}
32... cxb4 {[%clk 0:01:32.3]} 33. Na4 {[%clk 0:01:37.1]} 33... Kd8 {[%clk
0:01:30.4]} 34. Nb6 {[%clk 0:01:35.4]} 34... Ke8 {[%clk 0:01:19.1]} 35. Rxb4
{[%clk 0:01:35.3]} 35... Kf7 {[%clk 0:01:17.3]} 36. Rf1 {[%clk 0:01:29.9]} 36...
Kg8 {[%clk 0:01:11.9]} 37. Nxd7 {[%clk 0:01:29.3]} 1-0

[Event "*** Titled Tuesday Blitz"]
[Site "Chess.com"]
[Date "2020.05.19"]
[Round "1"]
[White "nubair1198"]
[Black "GMJustin"]
[Result "1-0"]
[WhiteElo "2677"]
[BlackElo "2361"]
[TimeControl "180+1"]
[EndTime "12:04:54 PDT"]
[Termination "nubair1198 won on time"]

1. Nf3 {[%clk 0:03:00.8]} 1... c5 {[%clk 0:02:46.2]} 2. g3 {[%clk 0:03:01.7]}
2... Nc6 {[%clk 0:02:43.7]} 3. Bg2 {[%clk 0:03:02.3]} 3... g6 {[%clk 0:02:28]}
4. O-O {[%clk 0:03:02]} 4... Bg7 {[%clk 0:02:26]} 5. d3 {[%clk 0:03:01.1]} 5...
d5 {[%clk 0:02:14.7]} 6. Nbd2 {[%clk 0:02:56.5]} 6... e5 {[%clk 0:02:09.4]} 7.
e4 {[%clk 0:02:56.5]} 7... Nge7 {[%clk 0:02:01.5]} 8. exd5 {[%clk 0:02:53.2]}
8... Nxd5 {[%clk 0:02:00.9]} 9. Nc4 {[%clk 0:02:53.8]} 9... O-O {[%clk
0:01:54.7]} 10. Re1 {[%clk 0:02:54]} 10... Re8 {[%clk 0:01:43.1]} 11. Bg5 {[%clk
0:02:54.1]} 11... f6 {[%clk 0:01:41.2]} 12. Bd2 {[%clk 0:02:54.4]} 12... Be6
{[%clk 0:01:36.9]} 13. Qc1 {[%clk 0:02:54.3]} 13... Qd7 {[%clk 0:01:28.6]} 14.
Bh6 {[%clk 0:02:51.4]} 14... b5 {[%clk 0:01:20.5]} 15. Bxg7 {[%clk 0:02:49.3]}
15... Kxg7 {[%clk 0:01:20]} 16. Ne3 {[%clk 0:02:48.9]} 16... Rad8 {[%clk
0:01:11.6]} 17. Qd2 {[%clk 0:02:37.8]} 17... Nxe3 {[%clk 0:00:33.2]} 18. Rxe3
{[%clk 0:02:36.2]} 18... Nd4 {[%clk 0:00:22.9]} 19. b3 {[%clk 0:02:28.1]} 19...
b4 {[%clk 0:00:13.6]} 20. a3 {[%clk 0:02:27]} 20... a5 {[%clk 0:00:13.7]} 21.
axb4 {[%clk 0:02:25]} 21... axb4 {[%clk 0:00:13.8]} 22. Nxd4 {[%clk 0:02:25.4]}
22... cxd4 {[%clk 0:00:06.6]} 23. Ree1 {[%clk 0:02:26.3]} 23... Qb5 {[%clk
0:00:04.3]} 24. Ra7+ {[%clk 0:02:24.3]} 24... Rd7 {[%clk 0:00:03.7]} 25. Rea1
{[%clk 0:02:24.5]} 25... Rb8 {[%clk 0:00:02.4]} 26. h4 {[%clk 0:02:20.8]} 26...
h6 {[%clk 0:00:01.4]} 27. R1a5 {[%clk 0:02:15]} 1-0

[Event "*** Titled Tuesday Blitz"]
[Site "Chess.com"]
[Date "2020.05.19"]
[Round "1"]
[White "KaterinaMiroshnik"]
[Black "RaunakSadhwani2005"]
[Result "0-1"]
[WhiteElo "2423"]
[BlackElo "2817"]
[TimeControl "180+1"]
[EndTime "12:04:55 PDT"]
[Termination "RaunakSadhwani2005 won by resignation"]

1. d3 {[%clk 0:03:00.4]} 1... d5 {[%clk 0:02:55.5]} 2. Nd2 {[%clk 0:03:01.3]}
2... Bg4 {[%clk 0:02:53.9]} 3. Ngf3 {[%clk 0:03:02.2]} 3... Nf6 {[%clk
0:02:53.5]} 4. e4 {[%clk 0:03:02.1]} 4... dxe4 {[%clk 0:02:53.1]} 5. dxe4 {[%clk
0:03:01.9]} 5... Nc6 {[%clk 0:02:52.1]} 6. Be2 {[%clk 0:03:01.2]} 6... e5 {[%clk
0:02:51.5]} 7. O-O {[%clk 0:03:00.6]} 7... Be7 {[%clk 0:02:49.2]} 8. c3 {[%clk
0:03:00.3]} 8... a5 {[%clk 0:02:48.5]} 9. Qc2 {[%clk 0:03:00.5]} 9... O-O {[%clk
0:02:48.1]} 10. Re1 {[%clk 0:03:00.2]} 10... Nd7 {[%clk 0:02:45.4]} 11. Bf1
{[%clk 0:02:59.3]} 11... Be6 {[%clk 0:02:45.3]} 12. b3 {[%clk 0:02:58.6]} 12...
f6 {[%clk 0:02:45]} 13. Bb2 {[%clk 0:02:57]} 13... Qe8 {[%clk 0:02:45.2]} 14.
Rad1 {[%clk 0:02:56.5]} 14... Nc5 {[%clk 0:02:44.3]} 15. Bc4 {[%clk 0:02:54.8]}
15... Qf7 {[%clk 0:02:42.4]} 16. Bxe6 {[%clk 0:02:45.2]} 16... Nxe6 {[%clk
0:02:43.3]} 17. Nc4 {[%clk 0:02:43.1]} 17... Rfd8 {[%clk 0:02:37.9]} 18. Ne3
{[%clk 0:02:42.2]} 18... Bc5 {[%clk 0:02:34.7]} 19. Nd5 {[%clk 0:02:39.9]} 19...
Ne7 {[%clk 0:02:28.1]} 20. a3 {[%clk 0:02:22.2]} 20... Nxd5 {[%clk 0:02:20]} 21.
exd5 {[%clk 0:02:23.1]} 21... Nf4 {[%clk 0:02:18.6]} 22. c4 {[%clk 0:02:19]}
22... Qh5 {[%clk 0:02:16.7]} 23. Qe4 {[%clk 0:01:23.9]} 23... Qg4 {[%clk
0:02:09.4]} 24. g3 {[%clk 0:01:15.1]} 24... Nh3+ {[%clk 0:02:07]} 25. Kg2 {[%clk
0:01:13]} 25... Qxe4 {[%clk 0:02:07.9]} 26. Rxe4 {[%clk 0:01:11.8]} 26... Nxf2
{[%clk 0:02:08.1]} 27. Ree1 {[%clk 0:01:11.2]} 27... Nxd1 {[%clk 0:02:06.9]} 28.
Rxd1 {[%clk 0:01:12.1]} 28... c6 {[%clk 0:02:06.7]} 29. Nh4 {[%clk 0:01:07.2]}
29... g6 {[%clk 0:02:03]} 30. Nf3 {[%clk 0:01:05.9]} 30... Rd7 {[%clk
0:02:00.5]} 31. g4 {[%clk 0:00:55.6]} 31... cxd5 {[%clk 0:01:46.6]} 32. cxd5
{[%clk 0:00:53.9]} 32... Rad8 {[%clk 0:01:46.8]} 33. g5 {[%clk 0:00:53.6]} 33...
Rxd5 {[%clk 0:01:47.2]} 34. Rc1 {[%clk 0:00:53.5]} 34... e4 {[%clk 0:01:46]} 0-1

[Event "*** Titled Tuesday Blitz"]
[Site "Chess.com"]
[Date "2020.05.19"]
[Round "1"]
[White "GianmarcoVaR"]
[Black "Prostochendir"]
[Result "1-0"]
[WhiteElo "2514"]
[BlackElo "2175"]
[TimeControl "180+1"]
[EndTime "12:05:01 PDT"]
[Termination "GianmarcoVaR won by resignation"]

1. d4 {[%clk 0:02:59.9]} 1... d5 {[%clk 0:02:52]} 2. c4 {[%clk 0:02:59.7]} 2...
e6 {[%clk 0:02:42]} 3. Nf3 {[%clk 0:03:00.1]} 3... Nf6 {[%clk 0:02:39.3]} 4. g3
{[%clk 0:03:00.5]} 4... c6 {[%clk 0:02:31.3]} 5. Bg2 {[%clk 0:03:01]} 5... Be7
{[%clk 0:02:29.5]} 6. O-O {[%clk 0:03:01]} 6... O-O {[%clk 0:02:29.3]} 7. b3
{[%clk 0:03:00.5]} 7... Nbd7 {[%clk 0:02:29.5]} 8. Bb2 {[%clk 0:03:00.6]} 8...
a5 {[%clk 0:02:29.3]} 9. Nc3 {[%clk 0:03:00.2]} 9... Re8 {[%clk 0:02:17.3]} 10.
Qc2 {[%clk 0:02:59.9]} 10... Bf8 {[%clk 0:02:05.7]} 11. Rfd1 {[%clk 0:03:00.4]}
11... Qb6 {[%clk 0:02:02.5]} 12. Rac1 {[%clk 0:02:59.3]} 12... Qa7 {[%clk
0:01:58.4]} 13. h3 {[%clk 0:02:58.4]} 13... h6 {[%clk 0:01:52.7]} 14. Kh2 {[%clk
0:02:58.7]} 14... dxc4 {[%clk 0:01:43]} 15. bxc4 {[%clk 0:02:58.7]} 15... Nb6
{[%clk 0:01:41.2]} 16. Ne4 {[%clk 0:02:47.4]} 16... Nxe4 {[%clk 0:01:36.4]} 17.
Qxe4 {[%clk 0:02:48.3]} 17... Na4 {[%clk 0:01:35.6]} 18. Ba1 {[%clk 0:02:48.4]}
18... Ba3 {[%clk 0:01:24.5]} 19. Rc2 {[%clk 0:02:38.2]} 19... Bd7 {[%clk
0:01:18.8]} 20. Ne5 {[%clk 0:02:37.9]} 20... Red8 {[%clk 0:01:17]} 21. Qf3
{[%clk 0:02:31.1]} 21... Be8 {[%clk 0:01:14.8]} 22. Qxa3 {[%clk 0:02:30.8]}
22... b5 {[%clk 0:01:10.4]} 23. Nxc6 {[%clk 0:02:25.6]} 23... Bxc6 {[%clk
0:01:05]} 24. Bxc6 {[%clk 0:02:26.5]} 24... Rac8 {[%clk 0:00:59.3]} 25. cxb5
{[%clk 0:02:26.9]} 25... Nb6 {[%clk 0:00:58.6]} 26. Qc5 {[%clk 0:02:26.8]} 26...
Qc7 {[%clk 0:00:57.5]} 27. e3 {[%clk 0:02:16.9]} 27... Na4 {[%clk 0:00:51.2]}
28. Qa3 {[%clk 0:02:16.8]} 28... Nb6 {[%clk 0:00:48.6]} 29. Qxa5 {[%clk
0:02:16.8]} 29... Qb8 {[%clk 0:00:47]} 30. Rdc1 {[%clk 0:02:10.8]} 1-0

[Event "*** Titled Tuesday Blitz"]
[Site "Chess.com"]
[Date "2020.05.19"]
[Round "1"]
[White "Korona_91"]
[Black "PauloCesarCosta_sad"]
[Result "1/2-1/2"]
[WhiteElo "2516"]
[BlackElo "2206"]
[TimeControl "180+1"]
[EndTime "12:05:04 PDT"]
[Termination "Game drawn by agreement"]

1. e4 {[%clk 0:03:00.7]} 1... e6 {[%clk 0:02:59.9]} 2. Qe2 {[%clk 0:03:00.6]}
2... c5 {[%clk 0:02:59.1]} 3. g3 {[%clk 0:03:00.5]} 3... Nc6 {[%clk 0:02:58.7]}
4. c3 {[%clk 0:03:00.4]} 4... g6 {[%clk 0:02:57.9]} 5. Bg2 {[%clk 0:03:00.6]}
5... Bg7 {[%clk 0:02:58.4]} 6. f4 {[%clk 0:02:58.5]} 6... d6 {[%clk 0:02:56.1]}
7. Nf3 {[%clk 0:02:58.8]} 7... Nge7 {[%clk 0:02:54.8]} 8. O-O {[%clk 0:02:59.1]}
8... O-O {[%clk 0:02:54.5]} 9. d3 {[%clk 0:02:59.2]} 9... Rb8 {[%clk 0:02:53]}
10. a4 {[%clk 0:02:57.3]} 10... a6 {[%clk 0:02:52.5]} 11. Na3 {[%clk 0:02:55.1]}
11... b5 {[%clk 0:02:51.2]} 12. axb5 {[%clk 0:02:55.2]} 12... axb5 {[%clk
0:02:51.4]} 13. Nc2 {[%clk 0:02:44.4]} 13... b4 {[%clk 0:02:50.5]} 14. c4 {[%clk
0:02:34.8]} 14... Na5 {[%clk 0:02:34.4]} 15. e5 {[%clk 0:02:27]} 15... Nb3
{[%clk 0:02:29.5]} 16. Rb1 {[%clk 0:02:23.4]} 16... Nxc1 {[%clk 0:02:26.8]} 17.
Rbxc1 {[%clk 0:02:17.4]} 17... Bb7 {[%clk 0:02:24.7]} 18. Rcd1 {[%clk
0:02:09.1]} 18... dxe5 {[%clk 0:02:21]} 19. Nxe5 {[%clk 0:01:58.2]} 19... Bxg2
{[%clk 0:02:20]} 20. Qxg2 {[%clk 0:01:59.1]} 20... Qc7 {[%clk 0:02:10.9]} 21.
Qe4 {[%clk 0:01:47.3]} 21... Rbd8 {[%clk 0:01:51.4]} 22. b3 {[%clk 0:01:44.8]}
22... Nf5 {[%clk 0:01:48.4]} 23. Ra1 {[%clk 0:01:18.1]} 23... Nd4 {[%clk
0:01:44.7]} 24. Nxd4 {[%clk 0:01:12.9]} 24... Rxd4 {[%clk 0:01:44.3]} 25. Qe3
{[%clk 0:01:12.2]} 25... Rfd8 {[%clk 0:01:32.7]} 26. Rfd1 {[%clk 0:01:11.2]}
26... Bxe5 {[%clk 0:01:26.8]} 27. fxe5 {[%clk 0:01:10.8]} 27... Qd7 {[%clk
0:01:20.8]} 1/2-1/2

[Event "*** Titled Tuesday Blitz"]
[Site "Chess.com"]
[Date "2020.05.19"]
[Round "1"]
[White "MF1966Idrisov"]
[Black "Reader777"]
[Result "1/2-1/2"]
[WhiteElo "2326"]
[BlackElo "2602"]
[TimeControl "180+1"]
[EndTime "12:05:11 PDT"]
[Termination "Game drawn by repetition"]

1. Nf3 {[%clk 0:03:00.9]} 1... Nf6 {[%clk 0:02:59]} 2. b3 {[%clk 0:03:00.5]}
2... d5 {[%clk 0:02:58.3]} 3. Bb2 {[%clk 0:03:00.6]} 3... e6 {[%clk 0:02:58.5]}
4. e3 {[%clk 0:03:00.8]} 4... b6 {[%clk 0:02:58.7]} 5. d4 {[%clk 0:03:00.9]}
5... Bb7 {[%clk 0:02:59]} 6. Bd3 {[%clk 0:03:01.1]} 6... Bd6 {[%clk 0:02:58.2]}
7. O-O {[%clk 0:03:00.8]} 7... O-O {[%clk 0:02:58.7]} 8. Nbd2 {[%clk 0:03:00.9]}
8... Ne4 {[%clk 0:02:58.3]} 9. Ne5 {[%clk 0:02:59.4]} 9... f6 {[%clk 0:02:58.1]}
10. Nef3 {[%clk 0:02:55.6]} 10... Nd7 {[%clk 0:02:57.5]} 11. c4 {[%clk
0:02:54.1]} 11... f5 {[%clk 0:02:56.2]} 12. Qc2 {[%clk 0:02:53.4]} 12... Qe7
{[%clk 0:02:50.3]} 13. a3 {[%clk 0:02:51]} 13... a5 {[%clk 0:02:49.1]} 14. a4
{[%clk 0:02:40.6]} 14... Rac8 {[%clk 0:02:44.9]} 15. Qc1 {[%clk 0:02:36.7]}
15... g5 {[%clk 0:02:38.7]} 16. Ne5 {[%clk 0:02:23.1]} 16... Nxe5 {[%clk
0:02:33.3]} 17. dxe5 {[%clk 0:02:21.8]} 17... Bb4 {[%clk 0:02:33.9]} 18. Nxe4
{[%clk 0:02:20.2]} 18... dxe4 {[%clk 0:02:32.1]} 19. Be2 {[%clk 0:02:19.9]}
19... Rfd8 {[%clk 0:02:31.6]} 20. Rd1 {[%clk 0:02:16.4]} 20... Rxd1+ {[%clk
0:02:30.8]} 21. Qxd1 {[%clk 0:02:16.1]} 21... Rd8 {[%clk 0:02:31.4]} 22. Qc1
{[%clk 0:02:12.2]} 22... Rd2 {[%clk 0:02:29.3]} 23. Bf1 {[%clk 0:02:10.4]} 23...
Qd7 {[%clk 0:02:28.8]} 24. Bc3 {[%clk 0:02:06.6]} 24... Bxc3 {[%clk 0:02:27.4]}
25. Qxc3 {[%clk 0:02:06.5]} 25... c5 {[%clk 0:02:24.8]} 26. Qc1 {[%clk
0:02:01.7]} 26... Kg7 {[%clk 0:02:22.7]} 27. Rb1 {[%clk 0:02:01.1]} 27... Kg6
{[%clk 0:02:22.1]} 28. Rb2 {[%clk 0:02:01]} 28... Rd1 {[%clk 0:02:20.5]} 29. Qc2
{[%clk 0:01:59.3]} 29... Bc8 {[%clk 0:02:09]} 30. g3 {[%clk 0:01:55.5]} 30...
Qd8 {[%clk 0:02:03.4]} 31. Kg2 {[%clk 0:01:54.1]} 31... h5 {[%clk 0:02:02.8]}
32. Be2 {[%clk 0:01:53.6]} 32... Rd7 {[%clk 0:02:02.8]} 33. Rb1 {[%clk
0:01:52.2]} 33... Rd2 {[%clk 0:01:59.2]} 34. Rd1 {[%clk 0:01:51.2]} 34... Rxd1
{[%clk 0:01:49.6]} 35. Qxd1 {[%clk 0:01:50.7]} 35... Qxd1 {[%clk 0:01:46.2]} 36.
Bxd1 {[%clk 0:01:50.5]} 36... Bd7 {[%clk 0:01:43.7]} 37. h4 {[%clk 0:01:49.8]}
37... Be8 {[%clk 0:01:41.5]} 38. hxg5 {[%clk 0:01:48.2]} 38... Kxg5 {[%clk
0:01:41.7]} 39. Kh3 {[%clk 0:01:48.3]} 39... Bg6 {[%clk 0:01:39.5]} 40. Be2
{[%clk 0:01:48.3]} 40... Bf7 {[%clk 0:01:39.5]} 41. Bd1 {[%clk 0:01:48.4]} 41...
Be8 {[%clk 0:01:39.6]} 42. Be2 {[%clk 0:01:45.7]} 42... Bc6 {[%clk 0:01:39.5]}
43. Bd1 {[%clk 0:01:45.1]} 43... Bb7 {[%clk 0:01:39]} 44. Be2 {[%clk 0:01:45.3]}
44... Ba6 {[%clk 0:01:37.1]} 45. Bd1 {[%clk 0:01:45.1]} 45... Bc8 {[%clk
0:01:37.1]} 46. Be2 {[%clk 0:01:45.1]} 46... Bd7 {[%clk 0:01:37.3]} 47. Bd1
{[%clk 0:01:45.1]} 47... Be8 {[%clk 0:01:37.4]} 48. Be2 {[%clk 0:01:45.4]} 48...
Bg6 {[%clk 0:01:37.2]} 49. Bd1 {[%clk 0:01:45.4]} 49... Bf7 {[%clk 0:01:37.4]}
50. Be2 {[%clk 0:01:45.7]} 50... Bg8 {[%clk 0:01:37.4]} 51. Bd1 {[%clk
0:01:45.6]} 51... Bf7 {[%clk 0:01:37.8]} 52. Be2 {[%clk 0:01:46]} 52... Be8
{[%clk 0:01:36.5]} 53. Bd1 {[%clk 0:01:46]} 53... Bd7 {[%clk 0:01:36]} 54. Be2
{[%clk 0:01:46.1]} 54... Bc6 {[%clk 0:01:36.2]} 55. Bd1 {[%clk 0:01:46.2]} 55...
Ba8 {[%clk 0:01:36.2]} 56. Be2 {[%clk 0:01:46.3]} 56... Bc6 {[%clk 0:01:36.5]}
1/2-1/2

[Event "*** Titled Tuesday Blitz"]
[Site "Chess.com"]
[Date "2020.05.19"]
[Round "1"]
[White "mortngabriel"]
[Black "AverageRecord"]
[Result "0-1"]
[WhiteElo "2457"]
[BlackElo "2954"]
[TimeControl "180+1"]
[EndTime "12:05:12 PDT"]
[Termination "AverageRecord won by resignation"]

1. d4 {[%clk 0:02:56.8]} 1... d5 {[%clk 0:02:59.9]} 2. c4 {[%clk 0:02:56.3]}
2... dxc4 {[%clk 0:03:00.8]} 3. Nf3 {[%clk 0:02:55.2]} 3... c5 {[%clk
0:03:00.7]} 4. e3 {[%clk 0:02:51]} 4... cxd4 {[%clk 0:03:00.3]} 5. Qxd4 {[%clk
0:02:49.3]} 5... Qxd4 {[%clk 0:02:58.2]} 6. Nxd4 {[%clk 0:02:50.2]} 6... a6
{[%clk 0:02:57.7]} 7. Bxc4 {[%clk 0:02:48.9]} 7... e5 {[%clk 0:02:58.2]} 8. Nf3
{[%clk 0:02:46.9]} 8... Nc6 {[%clk 0:02:58.6]} 9. O-O {[%clk 0:02:42.1]} 9...
Bg4 {[%clk 0:02:52.7]} 10. Bd5 {[%clk 0:02:38.4]} 10... Nge7 {[%clk 0:02:50.9]}
11. Nc3 {[%clk 0:02:33.5]} 11... Nxd5 {[%clk 0:02:46.8]} 12. Nxd5 {[%clk
0:02:34.4]} 12... O-O-O {[%clk 0:02:46.3]} 13. Nb6+ {[%clk 0:02:28.4]} 13... Kc7
{[%clk 0:02:45.1]} 14. Nc4 {[%clk 0:02:29.3]} 14... f6 {[%clk 0:02:44.2]} 15. a3
{[%clk 0:02:23.5]} 15... Be6 {[%clk 0:02:37.4]} 16. b3 {[%clk 0:02:11.7]} 16...
Rd3 {[%clk 0:02:36.4]} 17. Rb1 {[%clk 0:02:00]} 17... Rxb3 {[%clk 0:02:20.7]}
18. Rxb3 {[%clk 0:01:47.5]} 18... Bxc4 {[%clk 0:02:21.2]} 19. Rc3 {[%clk
0:01:36.2]} 19... Bxf1 {[%clk 0:02:21.4]} 20. Kxf1 {[%clk 0:01:37.1]} 20... Be7
{[%clk 0:02:17.5]} 21. Ke2 {[%clk 0:01:26.1]} 21... Rd8 {[%clk 0:02:17.5]} 22.
Bb2 {[%clk 0:01:23.2]} 22... b5 {[%clk 0:02:15.8]} 23. Nd2 {[%clk 0:01:14.3]}
23... Kb6 {[%clk 0:02:11.9]} 24. Ne4 {[%clk 0:01:04.2]} 24... a5 {[%clk
0:02:08.3]} 25. g4 {[%clk 0:00:57.8]} 25... a4 {[%clk 0:02:04.7]} 26. h4 {[%clk
0:00:40.1]} 26... Na5 {[%clk 0:02:02.8]} 27. Nd2 {[%clk 0:00:19.8]} 27... b4
{[%clk 0:02:00.1]} 28. axb4 {[%clk 0:00:16.6]} 28... Bxb4 {[%clk 0:02:01]} 29.
Nc4+ {[%clk 0:00:17.5]} 29... Nxc4 {[%clk 0:01:57.4]} 30. Rxc4 {[%clk
0:00:18.4]} 30... Rd2+ {[%clk 0:01:57.6]} 0-1

[Event "*** Titled Tuesday Blitz"]
[Site "Chess.com"]
[Date "2020.05.19"]
[Round "1"]
[White "SaqoChess_Twitch"]
[Black "Blitzstream"]
[Result "0-1"]
[WhiteElo "2376"]
[BlackElo "2714"]
[TimeControl "180+1"]
[EndTime "12:05:12 PDT"]
[Termination "Blitzstream won by resignation"]

1. d4 {[%clk 0:03:00.9]} 1... d5 {[%clk 0:02:58.1]} 2. c4 {[%clk 0:03:00.4]}
2... c6 {[%clk 0:02:58.4]} 3. Nc3 {[%clk 0:02:59.9]} 3... Nf6 {[%clk 0:02:58.7]}
4. e3 {[%clk 0:03:00.1]} 4... e6 {[%clk 0:02:58.6]} 5. Nf3 {[%clk 0:03:00.2]}
5... Nbd7 {[%clk 0:02:59]} 6. Bd3 {[%clk 0:03:00.3]} 6... dxc4 {[%clk
0:02:59.1]} 7. Bxc4 {[%clk 0:03:00.1]} 7... b5 {[%clk 0:02:59.8]} 8. Bd3 {[%clk
0:03:00.1]} 8... Bb7 {[%clk 0:03:00.2]} 9. e4 {[%clk 0:02:57.8]} 9... b4 {[%clk
0:02:59.7]} 10. Na4 {[%clk 0:02:57]} 10... c5 {[%clk 0:03:00.2]} 11. e5 {[%clk
0:02:57.6]} 11... Nd5 {[%clk 0:03:00.2]} 12. O-O {[%clk 0:02:58.3]} 12... cxd4
{[%clk 0:02:59.3]} 13. Re1 {[%clk 0:02:58.9]} 13... Be7 {[%clk 0:02:59.5]} 14.
Nxd4 {[%clk 0:02:58.3]} 14... O-O {[%clk 0:02:59]} 15. Qg4 {[%clk 0:02:51.7]}
15... Re8 {[%clk 0:02:46.6]} 16. Bh6 {[%clk 0:02:23.2]} 16... Bf8 {[%clk
0:02:44.7]} 17. Bg5 {[%clk 0:02:10.3]} 17... Qa5 {[%clk 0:02:37.6]} 18. b3
{[%clk 0:01:59.9]} 18... Nc3 {[%clk 0:02:37.4]} 19. Nxc3 {[%clk 0:01:33.3]}
19... bxc3 {[%clk 0:02:38.3]} 20. Bf6 {[%clk 0:01:31.8]} 20... Nxf6 {[%clk
0:02:15.9]} 21. exf6 {[%clk 0:01:30.8]} 21... g6 {[%clk 0:02:16.3]} 22. Re3
{[%clk 0:01:21.9]} 22... Rad8 {[%clk 0:02:06]} 23. Rh3 {[%clk 0:01:00.7]} 23...
Qd5 {[%clk 0:02:02.1]} 24. Rh4 {[%clk 0:00:37.1]} 24... e5 {[%clk 0:01:59.8]}
25. Be4 {[%clk 0:00:15.1]} 25... Qxe4 {[%clk 0:01:54.7]} 26. Qxe4 {[%clk
0:00:12.7]} 26... Bxe4 {[%clk 0:01:54.1]} 27. Ne2 {[%clk 0:00:13.3]} 27... c2
{[%clk 0:01:50.7]} 28. Nc3 {[%clk 0:00:13.7]} 0-1